fUST/lending_fUST_20260618
["ID","MTS","AMOUNT","RATE_DAILY","PERIOD"]
[425362565,1781722262000,-500.0,0.00019178,2]
[425362563,1781722262000,-500.0,0.00019178,2]
[425362570,1781722262000,-500.0,0.00019178,2]
[425362571,1781722262000,-1893.11,0.00019178,2]
[425362567,1781722262000,-682.69,0.00019178,2]
[425362572,1781722262000,-500.0,0.00019178,2]
[425362569,1781722262000,-588.06,0.00019178,2]
[425362575,1781722262000,-500.0,0.00019178,2]
[425362574,1781722262000,-500.0,0.00019178,2]
[425362540,1781722262000,-299846.77436853,0.00019,2]
[425362553,1781722262000,-385.87281901,0.00019178,2]
[425362544,1781722262000,-692.71966802,0.00019,2]
[425362530,1781722262000,-577.05585275,0.00018911,2]
[425362549,1781722262000,-500.0,0.00019178,2]
[425362573,1781722262000,-500.0,0.00019178,2]
[425362523,1781722262000,-430.16835574,0.00018911,2]
[425362522,1781722262000,-527.33864629,0.00018911,2]
[425362520,1781722262000,-469.47108073,0.00018911,2]
[425362521,1781722262000,-518.18181818,0.00018911,2]
[425362519,1781722262000,-424.38570947,0.00018911,2]
[425362525,1781722262000,-1306.27199375,0.00018911,2]
[425362524,1781722262000,-1157.57860786,0.00018911,2]
[425362534,1781722262000,-826.73874541,0.00018911,2]
[425362528,1781722262000,-476.8624427,0.00018911,2]
[425362529,1781722262000,-596.07611179,0.00018911,2]
[425362526,1781722262000,-586.49273884,0.00018911,2]
[425362547,1781722262000,-500.0,0.00019178,2]
[425362536,1781722262000,-454.95591105,0.00018911,2]
[425362527,1781722262000,-566.52943435,0.00018911,2]
[425362535,1781722262000,-1100.76483385,0.00018911,2]
[425362532,1781722262000,-562.87688234,0.00018911,2]
[425362533,1781722262000,-185.86533191,0.00018911,2]
[425362537,1781722262000,-281.39507881,0.00018911,2]
[425362538,1781722262000,-1133.64235525,0.00018911,2]
[425362539,1781722262000,-160.0,0.00018941,3]
[425362548,1781722262000,-533.76341185,0.00019178,2]
[425362543,1781722262000,-10035.61034582,0.00019,3]
[425362541,1781722262000,-3340.0,0.00019,2]
[425362545,1781722262000,-500.0,0.00019178,2]
[425362542,1781722262000,-10012.0,0.00019,2]
[425362531,1781722262000,-524.62961148,0.00018911,2]
[425362587,1781722262000,-519.39,0.00019178,2]
[425362577,1781722262000,-500.0,0.00019178,2]
[425362588,1781722262000,-975.4,0.00019178,2]
[425362608,1781722262000,-840.76,0.00019178,2]
[425362607,1781722262000,-344.94643917,0.00019178,2]
[425362610,1781722262000,-1892.21,0.00019178,2]
[425362611,1781722262000,-500.0,0.00019178,2]
[425362615,1781722262000,-500.0,0.00019178,2]
[425362624,1781722262000,-3184.50884829,0.00019205,5]
[425362616,1781722262000,-1576.6,0.00019178,2]
[425362617,1781722262000,-615.46,0.00019178,2]
[425362618,1781722262000,-2258.76,0.00019178,2]
[425362621,1781722262000,-2221.85,0.00019178,2]
[425362620,1781722262000,-500.0,0.00019178,2]
[425362619,1781722262000,-921.73,0.00019178,2]
[425362622,1781722262000,-2162.59,0.00019178,2]
[425362625,1781722262000,-559.82781111,0.00019208,2]
[425362631,1781722262000,-583.81233598,0.0001921,2]
[425362632,1781722262000,-519.33510488,0.0001921,2]
[425362628,1781722262000,-356.467987,0.0001921,2]
[425362630,1781722262000,-796.00159371,0.0001921,2]
[425362626,1781722262000,-247.46124816,0.0001921,2]
[425362627,1781722262000,-355.25385833,0.0001921,2]
[425362633,1781722262000,-1399.15587009,0.0001921,2]
[425362629,1781722262000,-625.71278505,0.0001921,2]
[425362634,1781722262000,-775.6198007,0.0001921,2]
[425362635,1781722262000,-679.70715002,0.0001921,2]
[425362636,1781722262000,-258.83619973,0.0001921,2]
[425362637,1781722262000,-548.08177901,0.0001921,2]
[425362576,1781722262000,-500.0,0.00019178,2]
[425362613,1781722262000,-701.31,0.00019178,2]
[425362614,1781722262000,-656.06,0.00019178,2]
[425362623,1781722262000,-500.0,0.00019178,2]
[425362609,1781722262000,-839.35,0.00019178,2]
[425362612,1781722262000,-2335.76,0.00019178,2]
[425362582,1781722262000,-500.0,0.00019178,2]
[425362578,1781722262000,-500.0,0.00019178,2]
[425362580,1781722262000,-3478.92,0.00019178,2]
[425362583,1781722262000,-500.0,0.00019178,2]
[425362585,1781722262000,-566.57720104,0.00019178,2]
[425362584,1781722262000,-394.3333,0.00019178,2]
[425362579,1781722262000,-500.0,0.00019178,2]
[425362581,1781722262000,-500.0,0.00019178,2]
[425362593,1781722262000,-13266.56,0.00019178,2]
[425362594,1781722262000,-859.62,0.00019178,2]
[425362595,1781722262000,-1380.44,0.00019178,2]
[425362590,1781722262000,-1137.24,0.00019178,2]
[425362589,1781722262000,-376.19,0.00019178,2]
[425362586,1781722262000,-732.78,0.00019178,2]
[425362606,1781722262000,-838.6,0.00019178,2]
[425362592,1781722262000,-500.0,0.00019178,2]
[425362602,1781722262000,-500.0,0.00019178,2]
[425362604,1781722262000,-647.98,0.00019178,2]
[425362605,1781722262000,-1185.06,0.00019178,2]
[425362600,1781722262000,-500.0,0.00019178,2]
[425362599,1781722262000,-873.43,0.00019178,2]
[425362603,1781722262000,-760.15,0.00019178,2]
[425362597,1781722262000,-804.99,0.00019178,2]
[425362598,1781722262000,-500.0,0.00019178,2]
[425362596,1781722262000,-588.0,0.00019178,2]
[425362591,1781722262000,-1850.59,0.00019178,2]
[425362601,1781722262000,-522.81,0.00019178,2]
[425362671,1781722263000,-352.08929252,0.0001921,2]
[425362676,1781722263000,-159.66983393,0.0001921,2]
[425362680,1781722263000,-159.0695714,0.0001921,2]
[425362681,1781722263000,-669.98297994,0.0001921,2]
[425362674,1781722263000,-167.80598822,0.0001921,2]
[425362672,1781722263000,-235.08367123,0.0001921,2]
[425362669,1781722263000,-334.99103,0.0001921,2]
[425362673,1781722263000,-159.66983393,0.0001921,2]
[425362670,1781722263000,-696.59511832,0.0001921,2]
[425362678,1781722263000,-669.26365518,0.0001921,2]
[425362675,1781722263000,-160.07452218,0.0001921,2]
[425362682,1781722263000,-159.0695714,0.0001921,2]
[425362677,1781722263000,-159.66983393,0.0001921,2]
[425362685,1781722263000,-618.35852881,0.0001921,2]
[425362706,1781722263000,-663.97292614,0.00019213,2]
[425362687,1781722263000,-159.06957139,0.0001921,2]
[425362684,1781722263000,-718.13764317,0.0001921,2]
[425362694,1781722263000,-220.53517355,0.0001921,2]
[425362688,1781722263000,-643.30111941,0.0001921,2]
[425362691,1781722263000,-671.17038005,0.0001921,2]
[425362689,1781722263000,-728.63009957,0.0001921,2]
[425362683,1781722263000,-189.10670858,0.0001921,2]
[425362690,1781722263000,-160.0699552,0.0001921,2]
[425362693,1781722263000,-1523.82523712,0.0001921,2]
[425362692,1781722263000,-159.94995645,0.0001921,2]
[425362696,1781722263000,-703.99395989,0.00019211,2]
[425362695,1781722263000,-309.51394109,0.0001921,2]
[425362679,1781722263000,-171.07008992,0.0001921,2]
[425362686,1781722263000,-300.8757871,0.0001921,2]
[425362664,1781722263000,-214.37460625,0.0001921,2]
[425362642,1781722263000,-400.18513722,0.0001921,2]
[425362660,1781722263000,-221.69130083,0.0001921,2]
[425362707,1781722263000,-319.6,0.00019213,2]
[425362640,1781722263000,-4673.70824789,0.0001921,2]
[425362639,1781722263000,-688.76069966,0.0001921,2]
[425362641,1781722263000,-642.48883012,0.0001921,2]
[425362638,1781722263000,-166.29788029,0.0001921,2]
[425362643,1781722263000,-602.30428769,0.0001921,2]
[425362644,1781722263000,-158.76535376,0.0001921,2]
[425362645,1781722263000,-631.08099082,0.0001921,2]
[425362650,1781722263000,-659.15412283,0.0001921,2]
[425362647,1781722263000,-2570.41024964,0.0001921,2]
[425362646,1781722263000,-612.47855111,0.0001921,2]
[425362656,1781722263000,-640.32108251,0.0001921,2]
[425362653,1781722263000,-411.06976292,0.0001921,2]
[425362662,1781722263000,-1324.21909149,0.0001921,2]
[425362649,1781722263000,-687.2157909,0.0001921,2]
[425362651,1781722263000,-189.43169001,0.0001921,2]
[425362657,1781722263000,-166.87804971,0.0001921,2]
[425362648,1781722263000,-640.44386749,0.0001921,2]
[425362655,1781722263000,-483.35897721,0.0001921,2]
[425362654,1781722263000,-236.34849792,0.0001921,2]
[425362659,1781722263000,-388.11199817,0.0001921,2]
[425362658,1781722263000,-506.14209596,0.0001921,2]
[425362666,1781722263000,-159.1319987,0.0001921,2]
[425362668,1781722263000,-847.95894013,0.0001921,2]
[425362665,1781722263000,-210.45570712,0.0001921,2]
[425362661,1781722263000,-312.94510447,0.0001921,2]
[425362663,1781722263000,-166.56958191,0.0001921,2]
[425362667,1781722263000,-189.96768993,0.0001921,2]
[425362652,1781722263000,-273.46161841,0.0001921,2]
[425362698,1781722263000,-308.75638739,0.00019213,2]
[425362760,1781722263000,-160.41065442,0.00019262,2]
[425362701,1781722263000,-162.17978225,0.00019213,2]
[425362734,1781722263000,-729.88006982,0.00019262,2]
[425362735,1781722263000,-627.76837957,0.00019262,2]
[425362738,1781722263000,-778.99762791,0.00019262,2]
[425362736,1781722263000,-695.99246923,0.00019262,2]
[425362743,1781722263000,-1543.43814382,0.00019262,2]
[425362737,1781722263000,-655.09462076,0.00019262,2]
[425362741,1781722263000,-690.90909091,0.00019262,2]
[425362744,1781722263000,-163.04682161,0.00019262,2]
[425362739,1781722263000,-224.10265168,0.00019262,2]
[425362740,1781722263000,-625.96144098,0.00019262,2]
[425362745,1781722263000,-170.46404236,0.00019262,2]
[425362742,1781722263000,-703.11819506,0.00019262,2]
[425362758,1781722263000,-309.2695484,0.00019262,2]
[425362731,1781722263000,-330.64713964,0.00019262,2]
[425362757,1781722263000,-371.73066381,0.00019262,2]
[425362755,1781722263000,-750.50250979,0.00019262,2]
[425362749,1781722263000,-781.99031846,0.00019262,2]
[425362754,1781722263000,-162.4935669,0.00019262,2]
[425362746,1781722263000,-168.04099914,0.00019262,2]
[425362752,1781722263000,-794.76814905,0.00019262,2]
[425362751,1781722263000,-635.81659026,0.00019262,2]
[425362756,1781722263000,-699.50614863,0.00019262,2]
[425362750,1781722263000,-755.37257913,0.00019262,2]
[425362753,1781722263000,-769.40780366,0.00019262,2]
[425362748,1781722263000,-1741.69599166,0.00019262,2]
[425362759,1781722263000,-158.51667163,0.00019262,2]
[425362702,1781722263000,-161.25618396,0.00019213,2]
[425362761,1781722263000,-1102.31832722,0.00019262,2]
[425362747,1781722263000,-204.87517752,0.00019262,2]
[425362728,1781722263000,-665.344903,0.00019262,2]
[425362762,1781722263000,-1467.68644513,0.00019262,2]
[425362725,1781722263000,-613.88731383,0.00019262,2]
[425362730,1781722263000,-609.80336901,0.00019262,2]
[425362700,1781722263000,-657.9822069,0.00019213,2]
[425362697,1781722263000,-712.0929843,0.00019213,2]
[425362699,1781722263000,-503.34663527,0.00019213,2]
[425362705,1781722263000,-159.66983393,0.00019213,2]
[425362703,1781722263000,-6327.15658547,0.00019213,2]
[425362708,1781722263000,-212.04594137,0.00019213,2]
[425362709,1781722263000,-158.26922136,0.00019213,2]
[425362710,1781722263000,-605.93732864,0.00019224,2]
[425362711,1781722263000,-1272.72727273,0.00019231,2]
[425362712,1781722263000,-221.4778192,0.00019231,2]
[425362717,1781722263000,-155.83588774,0.00019262,2]
[425362720,1781722263000,-747.97578898,0.00019262,2]
[425362718,1781722263000,-564.16063218,0.00019262,2]
[425362704,1781722263000,-156.06825872,0.00019213,2]
[425362713,1781722263000,-160.0,0.00019243,4]
[425362723,1781722263000,-637.08302506,0.00019262,2]
[425362719,1781722263000,-2378.57144953,0.00019262,2]
[425362726,1781722263000,-806.18550563,0.00019262,2]
[425362727,1781722263000,-657.65316036,0.00019262,2]
[425362724,1781722263000,-383.81764816,0.00019262,2]
[425362721,1781722263000,-1336.22496336,0.00019262,2]
[425362729,1781722263000,-456.75218238,0.00019262,2]
[425362722,1781722263000,-399.09812465,0.00019262,2]
[425362732,1781722263000,-788.07150184,0.00019262,2]
[425362715,1781722263000,-541.4164789,0.00019251,2]
[425362716,1781722263000,-12078.06010848,0.00019258,3]
[425362714,1781722263000,-627.4855858,0.0001925,2]
[425362733,1781722263000,-602.02165519,0.00019262,2]
[425362801,1781722264000,-552.9,0.00019452,2]
[425362806,1781722264000,-500.0,0.00019452,2]
[425362805,1781722264000,-754.09,0.00019452,2]
[425362799,1781722264000,-812.0,0.00019452,2]
[425362798,1781722264000,-514.75,0.00019452,2]
[425362802,1781722264000,-693.75,0.00019452,2]
[425362791,1781722264000,-1045.77,0.000194,2]
[425362790,1781722264000,-245.94,0.000194,2]
[425362803,1781722264000,-1358.43,0.00019452,2]
[425362787,1781722264000,-1432.9712,0.000194,2]
[425362800,1781722264000,-659.66,0.00019452,2]
[425362804,1781722264000,-500.0,0.00019452,2]
[425362815,1781722264000,-320.12628032,0.00019452,2]
[425362808,1781722264000,-506.96512726,0.00019452,2]
[425362810,1781722264000,-634.23378371,0.00019452,2]
[425362809,1781722264000,-500.0,0.00019452,2]
[425362811,1781722264000,-500.0,0.00019452,2]
[425362794,1781722264000,-500.0,0.00019452,2]
[425362812,1781722264000,-682.69,0.00019452,2]
[425362814,1781722264000,-588.06,0.00019452,2]
[425362813,1781722264000,-500.0,0.00019452,2]
[425362825,1781722264000,-3478.92,0.00019452,2]
[425362824,1781722264000,-500.0,0.00019452,2]
[425362827,1781722264000,-500.0,0.00019452,2]
[425362828,1781722264000,-500.0,0.00019452,2]
[425362823,1781722264000,-500.0,0.00019452,2]
[425362807,1781722264000,-500.0,0.00019452,2]
[425362795,1781722264000,-403.27399368,0.00019452,2]
[425362796,1781722264000,-500.0,0.00019452,2]
[425362797,1781722264000,-513.54065887,0.00019452,2]
[425362817,1781722264000,-500.0,0.00019452,2]
[425362770,1781722264000,-1000.0,0.00019264,2]
[425362764,1781722264000,-562.79015761,0.00019262,2]
[425362771,1781722264000,-1000.0,0.00019264,2]
[425362763,1781722264000,-606.6078814,0.00019262,2]
[425362765,1781722264000,-162.51947085,0.00019262,2]
[425362766,1781722264000,-1511.52314033,0.00019262,2]
[425362769,1781722264000,-1000.0,0.00019264,2]
[425362767,1781722264000,-1000.0,0.00019263,2]
[425362768,1781722264000,-1000.0,0.00019264,2]
[425362772,1781722264000,-1000.0,0.00019264,2]
[425362778,1781722264000,-1625.8404,0.000194,2]
[425362774,1781722264000,-1000.0,0.00019264,2]
[425362777,1781722264000,-1000.0,0.00019364,2]
[425362776,1781722264000,-417.15472785,0.000193,3]
[425362780,1781722264000,-1023.3137,0.000194,2]
[425362779,1781722264000,-460.5169,0.000194,2]
[425362773,1781722264000,-1000.0,0.00019264,2]
[425362781,1781722264000,-1421.204,0.000194,2]
[425362782,1781722264000,-1421.204,0.000194,2]
[425362783,1781722264000,-1421.2,0.000194,2]
[425362784,1781722264000,-1187.4633,0.000194,2]
[425362786,1781722264000,-247.74434505,0.000194,2]
[425362788,1781722264000,-246.06,0.000194,2]
[425362789,1781722264000,-248.05696029,0.000194,2]
[425362793,1781722264000,-1303.36,0.00019452,2]
[425362785,1781722264000,-388.4355,0.000194,2]
[425362792,1781722264000,-188.81001891,0.00019452,2]
[425362819,1781722264000,-500.0,0.00019452,2]
[425362775,1781722264000,-1000.0,0.00019264,2]
[425362816,1781722264000,-1893.11,0.00019452,2]
[425362861,1781722264000,-500.0,0.00019452,2]
[425362858,1781722264000,-615.46,0.00019452,2]
[425362863,1781722264000,-2162.59,0.00019452,2]
[425362857,1781722264000,-1576.6,0.00019452,2]
[425362859,1781722264000,-2258.76,0.00019452,2]
[425362862,1781722264000,-2221.85,0.00019452,2]
[425362860,1781722264000,-921.73,0.00019452,2]
[425362865,1781722264000,-173.3,0.0001951,2]
[425362864,1781722264000,-500.0,0.00019452,2]
[425362866,1781722264000,-160.0,0.00019544,5]
[425362868,1781722264000,-782.14098131,0.00019559,2]
[425362867,1781722264000,-995.00199214,0.00019559,2]
[425362870,1781722264000,-969.52475088,0.00019559,2]
[425362869,1781722264000,-1748.94483762,0.00019559,2]
[425362872,1781722264000,-860.95087458,0.00019559,2]
[425362879,1781722264000,-800.40135314,0.00019559,2]
[425362877,1781722264000,-800.55483436,0.00019559,2]
[425362871,1781722264000,-849.63393753,0.00019559,2]
[425362878,1781722264000,-322.23931814,0.00019559,2]
[425362876,1781722264000,-3213.01281205,0.00019559,2]
[425362880,1781722264000,-1655.27386436,0.00019559,2]
[425362875,1781722264000,-788.85123852,0.00019559,2]
[425362873,1781722264000,-5842.13530986,0.00019559,2]
[425362881,1781722264000,-823.94265354,0.00019559,2]
[425362883,1781722264000,-837.47872492,0.00019559,2]
[425362882,1781722264000,-836.57956897,0.00019559,2]
[425362821,1781722264000,-485.89525562,0.00019452,2]
[425362856,1781722264000,-186.76659068,0.00019452,2]
[425362851,1781722264000,-1892.21,0.00019452,2]
[425362874,1781722264000,-752.88035961,0.00019559,2]
[425362848,1781722264000,-838.6,0.00019452,2]
[425362849,1781722264000,-840.76,0.00019452,2]
[425362820,1781722264000,-500.0,0.00019452,2]
[425362822,1781722264000,-500.0,0.00019452,2]
[425362826,1781722264000,-627.12459633,0.00019452,2]
[425362832,1781722264000,-1137.24,0.00019452,2]
[425362833,1781722264000,-1850.59,0.00019452,2]
[425362830,1781722264000,-519.39,0.00019452,2]
[425362831,1781722264000,-975.4,0.00019452,2]
[425362839,1781722264000,-804.99,0.00019452,2]
[425362837,1781722264000,-1380.44,0.00019452,2]
[425362829,1781722264000,-732.78,0.00019452,2]
[425362842,1781722264000,-500.0,0.00019452,2]
[425362838,1781722264000,-588.0,0.00019452,2]
[425362840,1781722264000,-500.0,0.00019452,2]
[425362818,1781722264000,-500.0,0.00019452,2]
[425362836,1781722264000,-859.62,0.00019452,2]
[425362835,1781722264000,-13266.56,0.00019452,2]
[425362834,1781722264000,-500.0,0.00019452,2]
[425362844,1781722264000,-500.0,0.00019452,2]
[425362853,1781722264000,-2335.76,0.00019452,2]
[425362854,1781722264000,-701.31,0.00019452,2]
[425362843,1781722264000,-522.81,0.00019452,2]
[425362855,1781722264000,-656.06,0.00019452,2]
[425362850,1781722264000,-839.35,0.00019452,2]
[425362852,1781722264000,-500.0,0.00019452,2]
[425362845,1781722264000,-760.15,0.00019452,2]
[425362841,1781722264000,-873.43,0.00019452,2]
[425362846,1781722264000,-647.98,0.00019452,2]
[425362847,1781722264000,-1185.06,0.00019452,2]
[425362893,1781722265000,-7908.94573183,0.00019563,2]
[425362894,1781722265000,-829.96615767,0.00019563,2]
[425362884,1781722265000,-897.67205396,0.00019559,2]
[425362891,1781722265000,-890.11623038,0.00019563,2]
[425362892,1781722265000,-822.47775862,0.00019563,2]
[425363040,1781722266000,-838.6,0.0002,2]
[425363031,1781722266000,-804.99,0.0002,2]
[425363033,1781722266000,-873.43,0.0002,2]
[425363042,1781722266000,-839.35,0.0002,2]
[425363032,1781722266000,-500.0,0.0002,2]
[425363026,1781722266000,-1850.59,0.0002,2]
[425363030,1781722266000,-588.0,0.0002,2]
[425363041,1781722266000,-840.76,0.0002,2]
[425363037,1781722266000,-760.15,0.0002,2]
[425363047,1781722266000,-656.06,0.0002,2]
[425363036,1781722266000,-549.84698694,0.0002,2]
[425363034,1781722266000,-500.0,0.0002,2]
[425363038,1781722266000,-647.98,0.0002,2]
[425363039,1781722266000,-1185.06,0.0002,2]
[425363043,1781722266000,-1892.21,0.0002,2]
[425363044,1781722266000,-500.0,0.0002,2]
[425363045,1781722266000,-2335.76,0.0002,2]
[425363029,1781722266000,-1380.44,0.0002,2]
[425363048,1781722266000,-1576.6,0.0002,2]
[425363035,1781722266000,-522.81,0.0002,2]
[425363028,1781722266000,-859.62,0.0002,2]
[425363005,1781722266000,-500.0,0.0002,2]
[425363025,1781722266000,-1137.24,0.0002,2]
[425363046,1781722266000,-701.31,0.0002,2]
[425363013,1781722266000,-500.0,0.0002,2]
[425363014,1781722266000,-500.0,0.0002,2]
[425363015,1781722266000,-500.0,0.0002,2]
[425363016,1781722266000,-500.0,0.0002,2]
[425363006,1781722266000,-500.0,0.0002,2]
[425363009,1781722266000,-682.69,0.0002,2]
[425363012,1781722266000,-500.0,0.0002,2]
[425363010,1781722266000,-588.06,0.0002,2]
[425363027,1781722266000,-13266.56,0.0002,2]
[425363008,1781722266000,-500.0,0.0002,2]
[425363011,1781722266000,-1893.11,0.0002,2]
[425363017,1781722266000,-500.0,0.0002,2]
[425363020,1781722266000,-500.0,0.0002,2]
[425363019,1781722266000,-500.0,0.0002,2]
[425363018,1781722266000,-3478.92,0.0002,2]
[425363023,1781722266000,-519.39,0.0002,2]
[425363021,1781722266000,-430.632,0.0002,4]
[425363022,1781722266000,-732.78,0.0002,2]
[425363024,1781722266000,-975.4,0.0002,2]
[425363007,1781722266000,-415.43267218,0.0002,2]
[425363051,1781722266000,-921.73,0.0002,2]
[425363055,1781722266000,-1000.0,0.0002,2]
[425363052,1781722266000,-500.0,0.0002,2]
[425363079,1781722266000,-986.97331034,0.00020087,2]
[425363077,1781722266000,-1055.99093984,0.00020085,2]
[425363076,1781722266000,-2285.73785568,0.00020084,2]
[425363078,1781722266000,-1068.13947645,0.00020087,2]
[425363082,1781722266000,-200.95,0.000201,2]
[425363080,1781722266000,-9490.7348782,0.00020087,2]
[425363084,1781722266000,-1698.9796068,0.00020138,2]
[425363081,1781722266000,-995.95938921,0.00020087,2]
[425363085,1781722266000,-1121.96368347,0.00020138,2]
[425363074,1781722266000,-1092.94514935,0.00020084,2]
[425363083,1781722266000,-909.09090909,0.00020107,2]
[425363091,1781722266000,-914.70505352,0.00020138,2]
[425363087,1781722266000,-955.62453759,0.00020138,2]
[425363089,1781722266000,-986.47974054,0.00020138,2]
[425363088,1781722266000,-920.83097075,0.00020138,2]
[425363092,1781722266000,-903.03248278,0.00020138,2]
[425363093,1781722266000,-1094.82010473,0.00020138,2]
[425363094,1781722266000,-1043.98870384,0.00020138,2]
[425363095,1781722266000,-1036.36363636,0.00020138,2]
[425363050,1781722266000,-2258.76,0.0002,2]
[425363090,1781722266000,-998.0173545,0.00020138,2]
[425363072,1781722266000,-1077.20646475,0.00020084,2]
[425363086,1781722266000,-2004.33744503,0.00020138,2]
[425363073,1781722266000,-927.53779322,0.00020084,2]
[425363049,1781722266000,-615.46,0.0002,2]
[425363075,1781722266000,-964.95167911,0.00020084,2]
[425363054,1781722266000,-2162.59,0.0002,2]
[425363053,1781722266000,-2221.85,0.0002,2]
[425363056,1781722266000,-1194.00239057,0.00020084,2]
[425363061,1781722266000,-1033.1410495,0.00020084,2]
[425363063,1781722266000,-903.45643153,0.00020084,2]
[425363062,1781722266000,-7010.56237183,0.00020084,2]
[425363064,1781722266000,-946.62148623,0.00020084,2]
[425363060,1781722266000,-1019.56072503,0.00020084,2]
[425363058,1781722266000,-2098.73380514,0.00020084,2]
[425363057,1781722266000,-938.56917757,0.00020084,2]
[425363059,1781722266000,-1163.42970105,0.00020084,2]
[425363066,1781722266000,-960.66580123,0.00020084,2]
[425363068,1781722266000,-960.48162376,0.00020084,2]
[425363067,1781722266000,-161.11965907,0.00020084,2]
[425363070,1781722266000,-1003.89548276,0.00020084,2]
[425363065,1781722266000,-3855.61537446,0.00020084,2]
[425363071,1781722266000,-1004.97446991,0.00020084,2]
[425363069,1781722266000,-1986.32863723,0.00020084,2]
[425363121,1781722267000,-500.0,0.00020273,2]
[425363133,1781722267000,-500.0,0.00020273,2]
[425363141,1781722267000,-1380.44,0.00020273,2]
[425363130,1781722267000,-500.0,0.00020273,2]
[425363131,1781722267000,-3478.92,0.00020273,2]
[425363127,1781722267000,-500.0,0.00020273,2]
[425363128,1781722267000,-186.79640872,0.00020273,2]
[425363123,1781722267000,-588.06,0.00020273,2]
[425363126,1781722267000,-500.0,0.00020273,2]
[425363132,1781722267000,-500.0,0.00020273,2]
[425363129,1781722267000,-500.0,0.00020273,2]
[425363142,1781722267000,-588.0,0.00020273,2]
[425363147,1781722267000,-522.81,0.00020273,2]
[425363138,1781722267000,-1850.59,0.00020273,2]
[425363135,1781722267000,-519.39,0.00020273,2]
[425363139,1781722267000,-13266.56,0.00020273,2]
[425363137,1781722267000,-1137.24,0.00020273,2]
[425363134,1781722267000,-732.78,0.00020273,2]
[425363140,1781722267000,-859.62,0.00020273,2]
[425363153,1781722267000,-839.35,0.00020273,2]
[425363144,1781722267000,-500.0,0.00020273,2]
[425363145,1781722267000,-873.43,0.00020273,2]
[425363156,1781722267000,-2335.76,0.00020273,2]
[425363124,1781722267000,-1893.11,0.00020273,2]
[425363143,1781722267000,-804.99,0.00020273,2]
[425363125,1781722267000,-500.0,0.00020273,2]
[425363101,1781722267000,-1192.15222358,0.00020138,2]
[425363120,1781722267000,-500.0,0.00020273,2]
[425363152,1781722267000,-840.76,0.00020273,2]
[425363097,1781722267000,-2315.15721573,0.00020138,2]
[425363096,1781722267000,-1054.67729259,0.00020138,2]
[425363099,1781722267000,-1133.05886869,0.00020138,2]
[425363098,1781722267000,-2612.54398749,0.00020138,2]
[425363100,1781722267000,-953.72488539,0.00020138,2]
[425363102,1781722267000,-1653.47749083,0.00020138,2]
[425363107,1781722267000,-864.0,0.00020162,2]
[425363104,1781722267000,-909.91182209,0.00020138,2]
[425363103,1781722267000,-2201.52966769,0.00020138,2]
[425363106,1781722267000,-160.0,0.00020146,7]
[425363122,1781722267000,-682.69,0.00020273,2]
[425363105,1781722267000,-2267.2847105,0.00020138,2]
[425363119,1781722267000,-500.0,0.00020273,2]
[425363111,1781722267000,-514.75,0.00020273,2]
[425363112,1781722267000,-812.0,0.00020273,2]
[425363108,1781722267000,-1303.36,0.00020273,2]
[425363113,1781722267000,-659.66,0.00020273,2]
[425363118,1781722267000,-754.09,0.00020273,2]
[425363110,1781722267000,-500.0,0.00020273,2]
[425363116,1781722267000,-1358.43,0.00020273,2]
[425363115,1781722267000,-693.75,0.00020273,2]
[425363117,1781722267000,-500.0,0.00020273,2]
[425363114,1781722267000,-552.9,0.00020273,2]
[425363109,1781722267000,-500.0,0.00020273,2]
[425363148,1781722267000,-760.15,0.00020273,2]
[425363136,1781722267000,-975.4,0.00020273,2]